[Event "December 5 Late 2023"]
[Site "https://www.chess.com"]
[Date "2023.12.05"]
[Round "10"]
[White "Cornelison, Paul"]
[Black "Petersson, Kjell"]
[Result "0-1"]
[Board "109"]
[TimeControl "180+1"]
[WhiteFideId "2004186"]
[BlackFideId "1705148"]
[WhiteElo "1912"]
[BlackElo "2160"]
[WhiteTeam "USA"]
[BlackTeam "SWE"]
[WhiteClock "0:00:20"]
[BlackClock "0:01:01"]

1. e4 {[%clk 0:03:00]}  c5 {[%clk 0:02:59]} 2. b4 {[%clk 0:03:00]}  cxb4 {[%clk 0:02:53]} 3. d4 {[%clk 0:03:01]}  d5 {[%clk 0:02:48]} 4. e5 {[%clk 0:03:00]}  Bf5 {[%clk 0:02:45]} 5. Bd3 {[%clk 0:03:00]}  Qd7 {[%clk 0:02:32]} 6. Ne2 {[%clk 0:02:58]}  Nc6 {[%clk 0:02:29]} 7. a3 {[%clk 0:02:58]}  Bxd3 {[%clk 0:02:25]} 8. Qxd3 {[%clk 0:02:57]}  e6 {[%clk 0:02:25]} 9. O-O {[%clk 0:02:55]}  Nge7 {[%clk 0:02:18]} 10. Bd2 {[%clk 0:02:31]}  Ng6 {[%clk 0:02:15]} 11. axb4 {[%clk 0:02:29]}  Nxb4 {[%clk 0:02:11]} 12. Bxb4 {[%clk 0:02:28]}  Bxb4 {[%clk 0:02:10]} 13. c3 {[%clk 0:02:28]}  Be7 {[%clk 0:02:08]} 14. f4 {[%clk 0:02:15]}  O-O {[%clk 0:02:06]} 15. Nd2 {[%clk 0:02:10]}  Rfc8 {[%clk 0:02:05]} 16. Rf3 {[%clk 0:02:09]}  a5 {[%clk 0:01:58]} 17. Nf1 {[%clk 0:02:05]}  a4 {[%clk 0:01:58]} 18. Ne3 {[%clk 0:02:03]}  a3 {[%clk 0:01:55]} 19. f5 {[%clk 0:01:59]}  Nh4 {[%clk 0:01:52]} 20. Rh3 {[%clk 0:01:46]}  Nxf5 {[%clk 0:01:51]} 21. Nxf5 {[%clk 0:01:41]}  exf5 {[%clk 0:01:51]} 22. g4 {[%clk 0:01:42]}  g6 {[%clk 0:01:49]} 23. Ng3 {[%clk 0:01:42]}  fxg4 {[%clk 0:01:46]} 24. Rh6 {[%clk 0:01:10]}  Bg5 {[%clk 0:01:45]} 25. Nh5 {[%clk 0:01:04]}  Qf5 {[%clk 0:01:29]} 26. Qxf5 {[%clk 0:00:56]}  gxf5 {[%clk 0:01:29]} 27. Nf6+ {[%clk 0:00:49]}  Kg7 {[%clk 0:01:06]} 28. Rxh7+ {[%clk 0:00:46]}  Kg6 {[%clk 0:01:05]} 29. h4 {[%clk 0:00:32]}  Bxf6 {[%clk 0:01:03]} 30. exf6 {[%clk 0:00:25]}  Kxh7 {[%clk 0:01:03]} 31. Ra2 {[%clk 0:00:20]}  Rxc3 {[%clk 0:01:01]} 0-1

[Event "December 5 Late 2023"]
[Site "https://www.chess.com"]
[Date "2023.12.05"]
[Round "10"]
[White "Burke, Paul"]
[Black "Smirnov, Timofey"]
[Result "1-0"]
[Board "112"]
[TimeControl "180+1"]
[WhiteFideId "2605767"]
[BlackFideId "24176427"]
[WhiteElo "1798"]
[BlackElo "2031"]
[WhiteTeam "CAN"]
[BlackTeam "RUS"]
[WhiteClock "0:00:21"]
[BlackClock "0:00:00"]

1. e4 {[%clk 0:03:00]}  e5 {[%clk 0:02:59]} 2. Nf3 {[%clk 0:03:00]}  Nf6 {[%clk 0:02:59]} 3. d3 {[%clk 0:03:00]}  Nc6 {[%clk 0:02:56]} 4. Be2 {[%clk 0:02:59]}  Bc5 {[%clk 0:02:55]} 5. O-O {[%clk 0:02:59]}  d6 {[%clk 0:02:56]} 6. h3 {[%clk 0:02:58]}  O-O {[%clk 0:02:56]} 7. Be3 {[%clk 0:02:57]}  Bb6 {[%clk 0:02:55]} 8. Bxb6 {[%clk 0:02:56]}  axb6 {[%clk 0:02:56]} 9. Nc3 {[%clk 0:02:56]}  Be6 {[%clk 0:02:48]} 10. a3 {[%clk 0:02:50]}  h6 {[%clk 0:02:48]} 11. d4 {[%clk 0:02:50]}  exd4 {[%clk 0:02:47]} 12. Nxd4 {[%clk 0:02:50]}  Nxd4 {[%clk 0:02:46]} 13. Qxd4 {[%clk 0:02:50]}  Re8 {[%clk 0:02:37]} 14. Rad1 {[%clk 0:02:47]}  Qe7 {[%clk 0:02:22]} 15. f4 {[%clk 0:02:28]}  Bd7 {[%clk 0:02:19]} 16. Bf3 {[%clk 0:02:20]}  Bc6 {[%clk 0:02:14]} 17. Rfe1 {[%clk 0:02:17]}  Qd8 {[%clk 0:02:04]} 18. Nd5 {[%clk 0:02:06]}  Nxd5 {[%clk 0:02:00]} 19. exd5 {[%clk 0:02:06]}  Bd7 {[%clk 0:01:56]} 20. c4 {[%clk 0:01:58]}  Qh4 {[%clk 0:01:53]} 21. Rf1 {[%clk 0:01:46]}  Qg3 {[%clk 0:01:49]} 22. Kh1 {[%clk 0:01:37]}  Re7 {[%clk 0:01:36]} 23. Rd2 {[%clk 0:01:05]}  Rae8 {[%clk 0:01:33]} 24. Rdf2 {[%clk 0:01:05]}  Re1 {[%clk 0:01:31]} 25. Qd2 {[%clk 0:00:58]}  Rxf1+ {[%clk 0:01:20]} 26. Rxf1 {[%clk 0:00:57]}  Bxh3 {[%clk 0:01:15]} 27. gxh3 {[%clk 0:00:55]}  Qxh3+ {[%clk 0:01:16]} 28. Kg1 {[%clk 0:00:55]}  Qg3+ {[%clk 0:01:08]} 29. Kh1 {[%clk 0:00:52]}  h5 {[%clk 0:00:47]} 30. Qg2 {[%clk 0:00:42]}  Qxf4 {[%clk 0:00:40]} 31. Qh2 {[%clk 0:00:37]}  Qxc4 {[%clk 0:00:33]} 32. Qg2 {[%clk 0:00:29]}  Re3 {[%clk 0:00:22]} 33. Qf2 {[%clk 0:00:26]}  Re5 {[%clk 0:00:20]} 34. Bg2 {[%clk 0:00:25]}  g6 {[%clk 0:00:17]} 35. Qf6 {[%clk 0:00:21]}  Qh4+ {[%clk 0:00:00]} 36. Qxh4 {[%clk 0:00:21]} 1-0

[Event "December 5 Late 2023"]
[Site "https://www.chess.com"]
[Date "2023.12.05"]
[Round "11"]
[White "Aronian, Levon"]
[Black "Carlsen, Magnus"]
[Result "0-1"]
[Board "1"]
[TimeControl "180+1"]
[WhiteFideId "13300474"]
[BlackFideId "1503014"]
[WhiteElo "3121"]
[BlackElo "3322"]
[WhiteTeam "USA"]
[BlackTeam "NOR"]
[WhiteClock "0:00:00"]
[BlackClock "0:00:22"]

1. d4 {[%clk 0:03:00]}  d5 {[%clk 0:02:59]} 2. c4 {[%clk 0:03:00]}  e6 {[%clk 0:02:59]} 3. Nf3 {[%clk 0:02:59]}  Nf6 {[%clk 0:02:59]} 4. e3 {[%clk 0:03:00]}  b6 {[%clk 0:02:58]} 5. Nc3 {[%clk 0:02:58]}  Bd6 {[%clk 0:02:57]} 6. cxd5 {[%clk 0:02:55]}  exd5 {[%clk 0:02:58]} 7. Qa4+ {[%clk 0:02:54]}  c6 {[%clk 0:02:57]} 8. Bd3 {[%clk 0:02:50]}  O-O {[%clk 0:02:57]} 9. O-O {[%clk 0:02:49]}  Re8 {[%clk 0:02:57]} 10. Qc2 {[%clk 0:02:49]}  Ba6 {[%clk 0:02:57]} 11. b3 {[%clk 0:02:44]}  Bxd3 {[%clk 0:02:56]} 12. Qxd3 {[%clk 0:02:44]}  Nbd7 {[%clk 0:02:55]} 13. Bb2 {[%clk 0:02:44]}  Nf8 {[%clk 0:02:55]} 14. Rac1 {[%clk 0:02:43]}  Rc8 {[%clk 0:02:55]} 15. Rc2 {[%clk 0:02:43]}  Ne6 {[%clk 0:02:55]} 16. Rfc1 {[%clk 0:02:42]}  Re7 {[%clk 0:02:51]} 17. Nb5 {[%clk 0:02:33]}  Qd7 {[%clk 0:02:29]} 18. Qe2 {[%clk 0:02:17]}  Bb8 {[%clk 0:02:04]} 19. Ne5 {[%clk 0:02:06]}  Bxe5 {[%clk 0:02:01]} 20. dxe5 {[%clk 0:02:06]}  Ne8 {[%clk 0:02:01]} 21. f4 {[%clk 0:01:54]}  c5 {[%clk 0:01:55]} 22. f5 {[%clk 0:01:48]}  N6c7 {[%clk 0:01:54]} 23. Nxc7 {[%clk 0:01:44]}  Nxc7 {[%clk 0:01:53]} 24. Rf1 {[%clk 0:01:32]}  Rce8 {[%clk 0:01:52]} 25. f6 {[%clk 0:01:02]}  Rxe5 {[%clk 0:01:52]} 26. Bxe5 {[%clk 0:00:59]}  Rxe5 {[%clk 0:01:53]} 27. fxg7 {[%clk 0:00:45]}  d4 {[%clk 0:01:53]} 28. Rd2 {[%clk 0:00:34]}  Nd5 {[%clk 0:01:49]} 29. Rf3 {[%clk 0:00:29]}  Qe7 {[%clk 0:01:46]} 30. Qa6 {[%clk 0:00:20]}  Nxe3 {[%clk 0:01:35]} 31. Qc8+ {[%clk 0:00:17]}  Qe8 {[%clk 0:01:33]} 32. Qxe8+ {[%clk 0:00:13]}  Rxe8 {[%clk 0:01:34]} 33. Rg3 {[%clk 0:00:08]}  b5 {[%clk 0:01:25]} 34. h3 {[%clk 0:00:06]}  c4 {[%clk 0:01:16]} 35. bxc4 {[%clk 0:00:03]}  bxc4 {[%clk 0:01:17]} 36. Rxd4 {[%clk 0:00:01]}  Nf5 {[%clk 0:01:17]} 37. Rdg4 {[%clk 0:00:01]}  h5 {[%clk 0:01:10]} 38. Rg5 {[%clk 0:00:01]}  Nxg3 {[%clk 0:01:10]} 39. Rxg3 {[%clk 0:00:02]}  Rc8 {[%clk 0:01:10]} 40. Rc3 {[%clk 0:00:02]}  Kxg7 {[%clk 0:01:10]} 41. Kf2 {[%clk 0:00:03]}  Kf6 {[%clk 0:01:10]} 42. Ke3 {[%clk 0:00:04]}  Ke5 {[%clk 0:01:10]} 43. Kd2 {[%clk 0:00:04]}  Kd4 {[%clk 0:01:09]} 44. Rf3 {[%clk 0:00:04]}  Rg8 {[%clk 0:01:09]} 45. Rf4+ {[%clk 0:00:03]}  Kc5 {[%clk 0:01:09]} 46. g4 {[%clk 0:00:01]}  Rd8+ {[%clk 0:01:07]} 47. Kc2 {[%clk 0:00:01]}  hxg4 {[%clk 0:01:06]} 48. hxg4 {[%clk 0:00:01]}  Rd7 {[%clk 0:01:06]} 49. Kc3 {[%clk 0:00:02]}  Rd3+ {[%clk 0:01:06]} 50. Kc2 {[%clk 0:00:03]}  Rg3 {[%clk 0:01:02]} 51. Rxf7 {[%clk 0:00:03]}  a5 {[%clk 0:01:02]} 52. Rc7+ {[%clk 0:00:02]}  Kb5 {[%clk 0:01:02]} 53. Rb7+ {[%clk 0:00:02]}  Kc6 {[%clk 0:01:03]} 54. Rg7 {[%clk 0:00:02]}  a4 {[%clk 0:01:02]} 55. g5 {[%clk 0:00:02]}  Kc5 {[%clk 0:01:01]} 56. g6 {[%clk 0:00:02]}  Rg2+ {[%clk 0:00:58]} 57. Kc3 {[%clk 0:00:02]}  Rg3+ {[%clk 0:00:58]} 58. Kc2 {[%clk 0:00:02]}  Kb4 {[%clk 0:00:52]} 59. Rg8 {[%clk 0:00:02]}  Rg2+ {[%clk 0:00:51]} 60. Kb1 {[%clk 0:00:02]}  a3 {[%clk 0:00:49]} 61. Kc1 {[%clk 0:00:01]}  Kc3 {[%clk 0:00:47]} 62. Kd1 {[%clk 0:00:02]}  Rxa2 {[%clk 0:00:39]} 63. g7 {[%clk 0:00:01]}  Rd2+ {[%clk 0:00:35]} 64. Kc1 {[%clk 0:00:01]}  Rg2 {[%clk 0:00:25]} 65. Kb1 {[%clk 0:00:01]}  Rg6 {[%clk 0:00:23]} 66. Ka2 {[%clk 0:00:01]}  Rg1 {[%clk 0:00:22]} 67. Rc8 {[%clk 0:00:00]}  Rxg7 {[%clk 0:00:22]} 0-1

[Event "December 5 Late 2023"]
[Site "https://www.chess.com"]
[Date "2023.12.05"]
[Round "11"]
[White "Duda, Jan-Krzysztof"]
[Black "Nakamura, Hikaru"]
[Result "0-1"]
[Board "2"]
[TimeControl "180+1"]
[WhiteFideId "1170546"]
[BlackFideId "2016192"]
[WhiteElo "3064"]
[BlackElo "3227"]
[WhiteTeam "POL"]
[BlackTeam "USA"]
[WhiteClock "0:00:00"]
[BlackClock "0:00:07"]

1. e4 {[%clk 0:03:00]}  e6 {[%clk 0:03:00]} 2. d4 {[%clk 0:02:59]}  d5 {[%clk 0:03:00]} 3. exd5 {[%clk 0:02:59]}  exd5 {[%clk 0:02:56]} 4. Nf3 {[%clk 0:03:00]}  Bd6 {[%clk 0:02:52]} 5. c4 {[%clk 0:02:58]}  Nf6 {[%clk 0:02:49]} 6. Nc3 {[%clk 0:02:56]}  O-O {[%clk 0:02:47]} 7. cxd5 {[%clk 0:02:54]}  Bb4 {[%clk 0:02:34]} 8. Bd3 {[%clk 0:02:48]}  Re8+ {[%clk 0:02:33]} 9. Be3 {[%clk 0:02:47]}  Nxd5 {[%clk 0:02:28]} 10. O-O {[%clk 0:02:47]}  Bxc3 {[%clk 0:02:06]} 11. bxc3 {[%clk 0:02:47]}  Bg4 {[%clk 0:02:07]} 12. Bd2 {[%clk 0:01:49]}  Qf6 {[%clk 0:01:58]} 13. Rb1 {[%clk 0:01:48]}  b6 {[%clk 0:01:52]} 14. Qa4 {[%clk 0:01:24]}  Nd7 {[%clk 0:01:24]} 15. Ne5 {[%clk 0:01:21]}  Nxe5 {[%clk 0:01:22]} 16. dxe5 {[%clk 0:01:22]}  Qe6 {[%clk 0:01:23]} 17. Qc2 {[%clk 0:01:10]}  g6 {[%clk 0:01:17]} 18. Rfe1 {[%clk 0:01:03]}  Rad8 {[%clk 0:01:12]} 19. Bg5 {[%clk 0:01:00]}  f6 {[%clk 0:01:08]} 20. Bh4 {[%clk 0:00:38]}  Nf4 {[%clk 0:00:57]} 21. Bb5 {[%clk 0:00:12]}  Bf5 {[%clk 0:00:36]} 22. Qa4 {[%clk 0:00:11]}  Bxb1 {[%clk 0:00:35]} 23. Qxf4 {[%clk 0:00:07]}  g5 {[%clk 0:00:33]} 24. Qa4 {[%clk 0:00:03]}  Bxa2 {[%clk 0:00:19]} 25. Bxe8 {[%clk 0:00:03]}  Rxe8 {[%clk 0:00:18]} 26. Bg3 {[%clk 0:00:03]}  f5 {[%clk 0:00:17]} 27. f3 {[%clk 0:00:03]}  a5 {[%clk 0:00:17]} 28. h4 {[%clk 0:00:02]}  h6 {[%clk 0:00:16]} 29. hxg5 {[%clk 0:00:02]}  hxg5 {[%clk 0:00:17]} 30. Qd4 {[%clk 0:00:02]}  Qd5 {[%clk 0:00:14]} 31. Qf2 {[%clk 0:00:02]}  f4 {[%clk 0:00:13]} 32. Bxf4 {[%clk 0:00:02]}  gxf4 {[%clk 0:00:13]} 33. Qh4 {[%clk 0:00:03]}  Qf7 {[%clk 0:00:07]} 34. Re4 {[%clk 0:00:03]}  Be6 {[%clk 0:00:06]} 35. Rxf4 {[%clk 0:00:03]}  Qh7 {[%clk 0:00:06]} 36. Qg5+ {[%clk 0:00:02]}  Qg7 {[%clk 0:00:07]} 37. Qh5 {[%clk 0:00:02]}  Rf8 {[%clk 0:00:07]} 38. Rxf8+ {[%clk 0:00:02]}  Kxf8 {[%clk 0:00:07]} 39. Qh4 {[%clk 0:00:02]}  Qxe5 {[%clk 0:00:07]} 40. Qh6+ {[%clk 0:00:02]}  Ke7 {[%clk 0:00:07]} 41. Qh7+ {[%clk 0:00:02]}  Bf7 {[%clk 0:00:07]} 42. Qd3 {[%clk 0:00:02]}  a4 {[%clk 0:00:07]} 43. c4 {[%clk 0:00:02]}  Qc5+ {[%clk 0:00:07]} 44. Kh2 {[%clk 0:00:00]}  Qd6+ {[%clk 0:00:07]} 0-1

[Event "December 5 Late 2023"]
[Site "https://www.chess.com"]
[Date "2023.12.05"]
[Round "11"]
[White "Firouzja, Alireza"]
[Black "Sarana, Alexey"]
[Result "0-1"]
[Board "3"]
[TimeControl "180+1"]
[WhiteFideId "12573981"]
[BlackFideId "24133795"]
[WhiteElo "3158"]
[BlackElo "3019"]
[WhiteTeam "FRA"]
[BlackTeam "SRB"]
[WhiteClock "0:00:00"]
[BlackClock "0:00:04"]

1. d4 {[%clk 0:03:00]}  Nf6 {[%clk 0:03:00]} 2. Bg5 {[%clk 0:03:00]}  d5 {[%clk 0:02:59]} 3. e3 {[%clk 0:03:01]}  c5 {[%clk 0:02:59]} 4. Bxf6 {[%clk 0:03:01]}  exf6 {[%clk 0:03:00]} 5. dxc5 {[%clk 0:03:01]}  Bxc5 {[%clk 0:03:00]} 6. c3 {[%clk 0:03:01]}  Nc6 {[%clk 0:03:00]} 7. Nf3 {[%clk 0:03:01]}  Qb6 {[%clk 0:02:59]} 8. Qb3 {[%clk 0:02:49]}  Be6 {[%clk 0:02:56]} 9. Nbd2 {[%clk 0:02:48]}  O-O {[%clk 0:02:55]} 10. Be2 {[%clk 0:02:46]}  Qc7 {[%clk 0:02:41]} 11. Qc2 {[%clk 0:02:39]}  Ne5 {[%clk 0:02:41]} 12. O-O {[%clk 0:02:37]}  Rfe8 {[%clk 0:02:37]} 13. Nd4 {[%clk 0:02:35]}  a6 {[%clk 0:02:35]} 14. Rad1 {[%clk 0:02:33]}  Rad8 {[%clk 0:02:35]} 15. Rfe1 {[%clk 0:02:33]}  g6 {[%clk 0:02:35]} 16. N2b3 {[%clk 0:02:31]}  Ba7 {[%clk 0:02:34]} 17. h3 {[%clk 0:02:31]}  Kg7 {[%clk 0:02:34]} 18. Bf1 {[%clk 0:02:27]}  Bb8 {[%clk 0:02:34]} 19. f4 {[%clk 0:02:14]}  Nc4 {[%clk 0:02:24]} 20. Qf2 {[%clk 0:02:14]}  Nd6 {[%clk 0:02:22]} 21. Nd2 {[%clk 0:02:12]}  Bc8 {[%clk 0:02:19]} 22. Bd3 {[%clk 0:02:08]}  b5 {[%clk 0:02:16]} 23. a3 {[%clk 0:02:07]}  Nc4 {[%clk 0:02:13]} 24. N2f3 {[%clk 0:02:04]}  Re7 {[%clk 0:02:10]} 25. Re2 {[%clk 0:02:03]}  Rde8 {[%clk 0:02:10]} 26. Rde1 {[%clk 0:02:04]}  Ba7 {[%clk 0:02:04]} 27. Bb1 {[%clk 0:02:02]}  Qd6 {[%clk 0:02:00]} 28. Bd3 {[%clk 0:02:00]}  Bd7 {[%clk 0:02:00]} 29. Kh2 {[%clk 0:01:52]}  Nxe3 {[%clk 0:01:32]} 30. g3 {[%clk 0:01:38]}  Nc4 {[%clk 0:01:29]} 31. Kg2 {[%clk 0:01:28]}  Bb6 {[%clk 0:01:13]} 32. Kh2 {[%clk 0:01:08]}  Bc8 {[%clk 0:01:12]} 33. Kg2 {[%clk 0:01:08]}  Qd7 {[%clk 0:01:08]} 34. g4 {[%clk 0:01:01]}  Qd6 {[%clk 0:01:07]} 35. Rxe7 {[%clk 0:00:47]}  Rxe7 {[%clk 0:01:08]} 36. Rxe7 {[%clk 0:00:44]}  Qxe7 {[%clk 0:01:09]} 37. Kg1 {[%clk 0:00:26]}  Qd6 {[%clk 0:01:05]} 38. Nh4 {[%clk 0:00:25]}  Bc7 {[%clk 0:01:01]} 39. Ng2 {[%clk 0:00:25]}  Bd7 {[%clk 0:00:57]} 40. Bf1 {[%clk 0:00:24]}  Qe7 {[%clk 0:00:56]} 41. Bd3 {[%clk 0:00:24]}  Bb6 {[%clk 0:00:54]} 42. Bf1 {[%clk 0:00:23]}  Qe4 {[%clk 0:00:51]} 43. b3 {[%clk 0:00:14]}  Nxa3 {[%clk 0:00:32]} 44. Nf5+ {[%clk 0:00:10]}  Qxf5 {[%clk 0:00:32]} 45. Qxb6 {[%clk 0:00:11]}  Qe6 {[%clk 0:00:31]} 46. Qf2 {[%clk 0:00:07]}  a5 {[%clk 0:00:28]} 47. Ne3 {[%clk 0:00:07]}  b4 {[%clk 0:00:27]} 48. cxb4 {[%clk 0:00:08]}  axb4 {[%clk 0:00:28]} 49. Qd2 {[%clk 0:00:08]}  Qb6 {[%clk 0:00:25]} 50. Kh2 {[%clk 0:00:08]}  Bc6 {[%clk 0:00:24]} 51. Bg2 {[%clk 0:00:06]}  d4 {[%clk 0:00:24]} 52. Nf1 {[%clk 0:00:02]}  Bxg2 {[%clk 0:00:23]} 53. Kxg2 {[%clk 0:00:03]}  Qc6+ {[%clk 0:00:23]} 54. Kg1 {[%clk 0:00:03]}  Qc3 {[%clk 0:00:22]} 55. Qf2 {[%clk 0:00:02]}  Qxb3 {[%clk 0:00:21]} 56. g5 {[%clk 0:00:02]}  Qd5 {[%clk 0:00:18]} 57. gxf6+ {[%clk 0:00:02]}  Kxf6 {[%clk 0:00:19]} 58. Qh4+ {[%clk 0:00:02]}  Kg7 {[%clk 0:00:19]} 59. f5 {[%clk 0:00:03]}  Qe5 {[%clk 0:00:17]} 60. Nh2 {[%clk 0:00:03]}  h5 {[%clk 0:00:10]} 61. fxg6 {[%clk 0:00:03]}  fxg6 {[%clk 0:00:10]} 62. Nf3 {[%clk 0:00:03]}  Qf6 {[%clk 0:00:10]} 63. Qe4 {[%clk 0:00:03]}  Nb5 {[%clk 0:00:05]} 64. Qb7+ {[%clk 0:00:03]}  Qf7 {[%clk 0:00:05]} 65. Qe4 {[%clk 0:00:02]}  b3 {[%clk 0:00:04]} 66. Ne5 {[%clk 0:00:02]}  Qf5 {[%clk 0:00:04]} 67. Qb7+ {[%clk 0:00:03]}  Kf6 {[%clk 0:00:04]} 68. Nd7+ {[%clk 0:00:02]}  Ke6 {[%clk 0:00:04]} 69. Qc6+ {[%clk 0:00:02]}  Ke7 {[%clk 0:00:05]} 70. Nc5 {[%clk 0:00:02]}  b2 {[%clk 0:00:04]} 71. Qb7+ {[%clk 0:00:03]}  Kd6 {[%clk 0:00:05]} 72. Ne4+ {[%clk 0:00:03]}  Ke5 {[%clk 0:00:05]} 73. Qxb5+ {[%clk 0:00:02]}  Kxe4 {[%clk 0:00:05]} 74. Qxb2 {[%clk 0:00:03]}  d3 {[%clk 0:00:06]} 75. Qb4+ {[%clk 0:00:02]}  Ke3 {[%clk 0:00:06]} 76. Qe1+ {[%clk 0:00:02]}  Kd4 {[%clk 0:00:07]} 77. Qb4+ {[%clk 0:00:03]}  Ke5 {[%clk 0:00:07]} 78. Qe7+ {[%clk 0:00:03]}  Kf4 {[%clk 0:00:07]} 79. Kf2 {[%clk 0:00:02]}  Qe5 {[%clk 0:00:04]} 80. Qf7+ {[%clk 0:00:02]}  Ke4 {[%clk 0:00:04]} 81. Qxg6+ {[%clk 0:00:02]}  Kd4 {[%clk 0:00:05]} 82. Qb6+ {[%clk 0:00:02]}  Kc3 {[%clk 0:00:05]} 83. Qc6+ {[%clk 0:00:02]}  Kd2 {[%clk 0:00:05]} 84. Qh6+ {[%clk 0:00:03]}  Kd1 {[%clk 0:00:06]} 85. Qc6 {[%clk 0:00:02]}  Qe2+ {[%clk 0:00:06]} 86. Kg3 {[%clk 0:00:03]}  d2 {[%clk 0:00:05]} 87. Qa4+ {[%clk 0:00:02]}  Ke1 {[%clk 0:00:05]} 88. Qb4 {[%clk 0:00:02]}  Kf1 {[%clk 0:00:03]} 89. Qf4+ {[%clk 0:00:02]}  Ke1 {[%clk 0:00:03]} 90. Qb4 {[%clk 0:00:02]}  Qe3+ {[%clk 0:00:03]} 91. Kg2 {[%clk 0:00:03]}  Qg5+ {[%clk 0:00:03]} 92. Kf3 {[%clk 0:00:03]}  Qf5+ {[%clk 0:00:04]} 93. Ke3 {[%clk 0:00:03]}  Qf2+ {[%clk 0:00:04]} 94. Kd3 {[%clk 0:00:03]}  Qe2+ {[%clk 0:00:05]} 95. Kc2 {[%clk 0:00:03]}  Qe3 {[%clk 0:00:04]} 96. Qa5 {[%clk 0:00:02]}  Qe4+ {[%clk 0:00:04]} 97. Kb2 {[%clk 0:00:02]}  Ke2 {[%clk 0:00:03]} 98. Qxh5+ {[%clk 0:00:00]}  Kf2 {[%clk 0:00:04]} 0-1

[Event "December 5 Late 2023"]
[Site "https://www.chess.com"]
[Date "2023.12.05"]
[Round "11"]
[White "Xiong, Jeffery"]
[Black "Erigaisi Arjun"]
[Result "1-0"]
[Board "4"]
[TimeControl "180+1"]
[WhiteFideId "2047640"]
[BlackFideId "35009192"]
[WhiteElo "3029"]
[BlackElo "3108"]
[WhiteTeam "USA"]
[BlackTeam "IND"]
[WhiteClock "0:00:15"]
[BlackClock "0:00:06"]

1. Nf3 {[%clk 0:03:00]}  c5 {[%clk 0:02:58]} 2. e4 {[%clk 0:03:00]}  d6 {[%clk 0:02:55]} 3. Nc3 {[%clk 0:03:01]}  a6 {[%clk 0:02:55]} 4. d4 {[%clk 0:02:59]}  cxd4 {[%clk 0:02:56]} 5. Qxd4 {[%clk 0:02:59]}  Nc6 {[%clk 0:02:55]} 6. Qd3 {[%clk 0:02:59]}  g6 {[%clk 0:02:55]} 7. Nd5 {[%clk 0:02:48]}  e6 {[%clk 0:02:39]} 8. Qc3 {[%clk 0:02:46]}  f6 {[%clk 0:02:40]} 9. Nb4 {[%clk 0:02:45]}  Nxb4 {[%clk 0:02:35]} 10. Qxb4 {[%clk 0:02:46]}  Ne7 {[%clk 0:02:35]} 11. Be3 {[%clk 0:02:41]}  Nc6 {[%clk 0:02:34]} 12. Qd2 {[%clk 0:02:41]}  Qa5 {[%clk 0:02:19]} 13. Qxa5 {[%clk 0:02:40]}  Nxa5 {[%clk 0:02:20]} 14. O-O-O {[%clk 0:02:40]}  b5 {[%clk 0:02:16]} 15. Nd2 {[%clk 0:02:31]}  Bb7 {[%clk 0:02:14]} 16. Bb6 {[%clk 0:02:25]}  Nc6 {[%clk 0:02:13]} 17. c4 {[%clk 0:02:25]}  Kf7 {[%clk 0:02:06]} 18. cxb5 {[%clk 0:02:20]}  axb5 {[%clk 0:02:07]} 19. Kb1 {[%clk 0:02:20]}  b4 {[%clk 0:02:03]} 20. Nc4 {[%clk 0:02:17]}  Ne5 {[%clk 0:01:57]} 21. f3 {[%clk 0:02:17]}  d5 {[%clk 0:01:55]} 22. exd5 {[%clk 0:02:07]}  Bxd5 {[%clk 0:01:40]} 23. Nxe5+ {[%clk 0:02:07]}  fxe5 {[%clk 0:01:40]} 24. b3 {[%clk 0:02:07]}  Bd6 {[%clk 0:01:21]} 25. Bd3 {[%clk 0:02:00]}  Rhb8 {[%clk 0:01:19]} 26. Bf2 {[%clk 0:01:59]}  Ra5 {[%clk 0:01:18]} 27. Rd2 {[%clk 0:01:57]}  Rc8 {[%clk 0:01:15]} 28. Re1 {[%clk 0:01:45]}  Rc3 {[%clk 0:01:08]} 29. Be4 {[%clk 0:01:38]}  Kf6 {[%clk 0:01:08]} 30. Bh4+ {[%clk 0:01:34]}  g5 {[%clk 0:01:07]} 31. Bg3 {[%clk 0:01:31]}  h5 {[%clk 0:01:07]} 32. Rf1 {[%clk 0:01:15]}  Bc5 {[%clk 0:01:01]} 33. Be1 {[%clk 0:01:13]}  Bd4 {[%clk 0:00:55]} 34. Rd1 {[%clk 0:01:03]}  Re3 {[%clk 0:00:37]} 35. Bxb4 {[%clk 0:00:57]}  Rb5 {[%clk 0:00:38]} 36. Bd2 {[%clk 0:00:52]}  Bxb3 {[%clk 0:00:29]} 37. axb3 {[%clk 0:00:51]}  Rbxb3+ {[%clk 0:00:29]} 38. Kc1 {[%clk 0:00:46]}  Re2 {[%clk 0:00:30]} 39. Rde1 {[%clk 0:00:39]}  Rxg2 {[%clk 0:00:29]} 40. f4 {[%clk 0:00:40]}  Rxh2 {[%clk 0:00:27]} 41. fxg5+ {[%clk 0:00:39]}  Kg7 {[%clk 0:00:23]} 42. g6 {[%clk 0:00:40]}  Rb2 {[%clk 0:00:18]} 43. Rf7+ {[%clk 0:00:37]}  Kg8 {[%clk 0:00:19]} 44. Bh6 {[%clk 0:00:37]}  Rb8 {[%clk 0:00:18]} 45. Rg7+ {[%clk 0:00:29]}  Kh8 {[%clk 0:00:18]} 46. Rb7 {[%clk 0:00:28]}  Rc8+ {[%clk 0:00:14]} 47. Kb1 {[%clk 0:00:28]}  Rf2 {[%clk 0:00:12]} 48. Rc1 {[%clk 0:00:25]}  Rd8 {[%clk 0:00:07]} 49. Rcc7 {[%clk 0:00:20]}  Rf1+ {[%clk 0:00:06]} 50. Kc2 {[%clk 0:00:20]}  Rf2+ {[%clk 0:00:07]} 51. Kb3 {[%clk 0:00:17]}  Rb2+ {[%clk 0:00:07]} 52. Kc4 {[%clk 0:00:15]}  Rxb7 {[%clk 0:00:08]} 53. Rxb7 {[%clk 0:00:16]}  Rc8+ {[%clk 0:00:08]} 54. Kd3 {[%clk 0:00:15]}  h4 {[%clk 0:00:08]} 55. Bg5 {[%clk 0:00:15]}  h3 {[%clk 0:00:07]} 56. Rh7+ {[%clk 0:00:15]}  Kg8 {[%clk 0:00:08]} 57. Bf6 {[%clk 0:00:15]}  Rc3+ {[%clk 0:00:06]} 58. Kd2 {[%clk 0:00:15]} 1-0